Workbook

Sheet приложение 1
W2: Приложение № 1 к постановлению администрации Княгининского муниципального района от ______________ № ____
A4: Краткосрочный план реализации региональной программы капитального ремонта общего имущества в многоквартирных домах, расположенных на территории Нижегородской области, на 2020-2022 годы
A5: Финансовое обеспечение краткосрочного плана реализации региональной программы капитального ремонта общего имущества в многоквартирных домах, расположенных на территории Нижегородской области, на период 2020-2022 гг.
Y6: Таблица 1
A7: №п/п | B7: Наименование муниципального района (городского округа) | C7: Общая площадь жилых и нежилых помещений в МКД, участвующих в региональной программе капитального ремонта общего имущества в многоквартирных домах, расположенных на территории Нижегородской области | G7: Общая площадь жилых и нежилых помещений, выбывших из региональной программы | H7: Общая площадь жилых и нежилых помещений, вновь включенных в региональную программу | I7: размер взноса на капитальный ремонт МКД | J7: Планируемый объем начислений в месяц | N7: Планируемый процент сбора взносов на капитальный ремонт | Q7: Доля, направленная на капитальный ремонт всоответствии со ст. 32 Закона Нижегородской области от 28.11.2013 № 159-З (счет у регионального оператора РО) | R7: Планируемые средства государственной и муниципальной поддержки | V7: Остаток средств, неиспользованных региональным оператором в предыдущем году** | W7: Планируемые средства на капитальный ремонт
C8: Всего | D8: в том числе | J8: Всего | K8: в том числе | N8: в том числе | R8: Всего | S8: в том числе | W8: Всего средств на капитальный ремонт по Нижегородской области (столбец 18+столбец 24 + столбец 25 + столбец 26) | X8: в том числе
D9: у регионального оператора (РО)* | E9: на спец. счете у регионального оператора (СчРО) | F9: на спец. счете ТСЖ/ЖК/УО | K9: Объем начисления (столбец 4 х столбец 9) (счет у регионального оператора РО) | L9: Объем начисления (столбец 5 х столбец 9) (спец.счет у регионального оператора СчРО | M9: Объем начисления (столбец 6 х столбец 9) (спец.счета ТСЖ/ЖК/УО) | N9: На счете у регионального оператора (РО) | O9: На спец.счете у регионального оператора (СчРО) | P9: На спец. счетах ТСЖ/ЖК/УО | S9: за счет средств Фонда содействия реформированию ЖКХ | T9: за счет средств бюджета субъекта Российской Федерации | U9: за счет средств местного бюджета | X9: На счете у регионального оператора (РО) (столбец 11 х столбец 14 х столбец 17 х 12 мес) + столбец 22 | Y9: На спец. счете у регионального оператора (СчРО) (столбец 12 х столбец 15 х 12 мес) (по МКД включенных в краткосрочный план) | Z9: На специальных счетах ТСЖ/ЖК/УО (столбец 13 х столбец 16 х 12 мес) (по МКД, включенных в краткосрочный план)
C10: кв.м | D10: кв.м | E10: кв.м | F10: кв.м | G10: кв.м | H10: кв.м | I10: руб. | J10: руб. | K10: руб. | L10: руб. | M10: руб. | N10: % | O10: % | P10: % | Q10: % | R10: руб. | S10: руб. | T10: руб. | U10: руб. | V10: руб. | W10: руб. | X10: руб. | Y10: руб. | Z10: руб.
A11: 1 | B11: 2 | C11: 3 | D11: 4 | E11: 5 | F11: 6 | G11: 7 | H11: 8 | I11: 9 | J11: 10 | K11: 11 | L11: 12 | M11: 13 | N11: 14 | O11: 15 | P11: 16 | Q11: 17 | R11: 18 | S11: 19 | T11: 20 | U11: 21 | V11: 22 | W11: 23 | X11: 24 | Y11: 25 | Z11: 26
A12: 20 | B12: Княгининский муниципальный район
A13: Всего по Княгининскому муниципальному району на 2020-2022 годы | V13: 6065469 | W13: 25806581 | X13: 25806581
A14: Итого на 2020 год | C14: 99586.9 | D14: 97129.1 | E14: 2457.8 | I14: 6.3 | J14: 627397 | K14: 611913 | L14: 15484 | N14: 91.9 | O14: 50.1 | Q14: 95 | V14: 5377262 | W14: 11788030 | X14: 11788030
A15: Итого на 2021 год | C15: 99586.9 | D15: 97129.1 | E15: 2457.8 | I15: 6.55 | J15: 652295 | K15: 636196 | L15: 16099 | N15: 91.9 | O15: 50.1 | Q15: 95 | V15: 337409 | W15: 7002581 | X15: 7002581
A16: Итого на 2022 год | C16: 99586.9 | D16: 97129.1 | E16: 2457.8 | I16: 6.55 | J16: 652295 | K16: 636196 | L16: 16099 | N16: 91.9 | O16: 50.1 | Q16: 95 | V16: 350798 | W16: 7015970 | X16: 7015970

Sheet Приложение 2
D2: Перечень многоквартирных домов, подлежащих капитальному ремонту в рамках краткосрочного плана реализации региональной программы капитального ремонта общего имущества в многоквартирных домах, расположенных на территории Нижегородской области, на период 2020-2022 гг. | V2: Приложение № 2 к постановлению администрации Княгининского муниципального района от ______________ № _____
A3: № п/п | B3: Адрес МКД | C3: Год ввода в эксплуатацию | D3: Завершение последнего капитального ремонта | E3: Способ формирования Фонда: спецсчет - ТСЖ/ЖК/УО;спецсчет у рег. оператора - СчРО;счет рег. Оператора - РО | F3: Материал стен | G3: Кол-во этажей | H3: Кол-во подъездов | I3: Общая площадь МКД, всего | J3: Площадь помещений МКД: | N3: Количество жителей, зарегистрированных в МКД на дату утверждения краткосрочного плана | O3: Источники финансирования капитального ремонта | T3: Стоимость капитального ремонта | Y3: Плановая дата завершения работ
J4: Всего: | K4: Жилых помещений | L4: Нежилых помещений | M4: В том числе жилых помещений, находящихся в собственности граждан | O4: Всего: | P4: в том числе: | T4: Всего: | U4: в том числе:
P5: За счет средств Фонда содействия реформированию ЖКХ | Q5: За счет средств бюджета субъекта РФ | R5: За счет средств местного бюджета | S5: За счет средств собственников помещений в МКД | U5: Стоимость строительно-монтажных работ (СМР) | V5: Стоимость проектных работ (ПИР) | W5: Стоимость затрат на осуществление строительного контроля (технического надзора), авторского надзора применительно к объектам культурного наследия | X5: Иные виды работ и услуг по капитальному ремонту, предусмотренные ст.20 Закона НО от 28.11.2013 №159-З
I7: кв.м | J7: кв.м | K7: кв.м | L7: кв.м | M7: кв.м | N7: чел. | O7: руб. | P7: руб | Q7: руб. | R7: руб. | S7: руб. | T7: руб. | U7: руб. | V7: руб. | W7: руб. | X7: руб | Y7: мм.гггг
A8: 1 | B8: 2 | C8: 3 | D8: 4 | E8: 5 | F8: 6 | G8: 7 | H8: 8 | I8: 9 | J8: 10 | K8: 11 | L8: 12 | M8: 13 | N8: 14 | O8: 15 | P8: 16 | Q8: 17 | R8: 18 | S8: 19 | T8: 20 | U8: 21 | V8: 22 | W8: 23 | X8: 24 | Y8: 25
A9: 20 | B9: Княгининский муниципальный район
A10: Всего по Княгининскому муниципальному району на 2020-2022 годы | I10: =I11+I14+I17 -> 8641.8 | J10: =J11+J14+J17 -> 7756.4 | K10: 7756.4 | L10: 0 | M10: 7465.1 | N10: 404 | O10: 33923161 | P10: 0 | Q10: 0 | R10: 0 | S10: 33923161 | T10: 33923161 | U10: 31637782 | V10: 1608327 | W10: 677052
A11: Итого по МО на период 2020 год | I11: =I12+I13 -> 1721.47 | J11: =J12+J13 -> 1539.2 | K11: 1539.2 | L11: 0 | M11: 1496.1 | N11: 70 | O11: 379044 | P11: 0 | Q11: 0 | R11: 0 | S11: 379044 | T11: 379044 | U11: 0 | V11: 379044 | W11: 0
A12: 691 | B12: г Княгинино, ул Октябрьская, д 21 | C12: 1972 | D12: не было | E12: РО | F12: К | G12: 2 | H12: 2 | I12: 790.2 | J12: 729.4 | K12: 729.4 | M12: 729.4 | N12: 29 | O12: =S12 -> 250949 | S12: =T12 -> 250949 | T12: ='Приложение 3'!D12 -> 250949 | U12: ='Приложение 3'!E12 -> 0 | V12: ='Приложение 3'!AF12 -> 250949 | W12: ='Приложение 3'!AK12 -> 0 | Y12: 12.2020
A13: 692 | B13: г. Княгинино, ул. Октябрьская, д. 2 | C13: 1978 | D13: не было | E13: РО | F13: К | G13: 2 | H13: 2 | I13: 931.27 | J13: 809.8 | K13: 809.8 | M13: 766.7 | N13: 41 | O13: 128095 | S13: 128095 | T13: ='Приложение 3'!D13 -> 128095 | U13: ='Приложение 3'!E13 -> 0 | V13: ='Приложение 3'!AF13 -> 128095 | W13: ='Приложение 3'!AK13 -> 0 | Y13: 12.2020
A14: Итого по МО на период 2021 год | I14: =I15+I16 -> 1721.47 | J14: =J15+J16 -> 1539.2 | K14: 1539.2 | L14: 0 | M14: 1496.1 | N14: 70 | O14: 2691106 | P14: 0 | Q14: 0 | R14: 0 | S14: 2691106 | T14: 2691106 | U14: 2548316 | V14: 88256 | W14: 54534
A15: 693 | B15: г Княгинино, ул Октябрьская, д 21 | C15: 1972 | D15: не было | E15: РО | F15: К | G15: 2 | H15: 2 | I15: 790.2 | J15: 729.4 | K15: 729.4 | M15: 729.4 | N15: 29 | O15: =S15 -> 2602850 | S15: =T15 -> 2602850 | T15: ='Приложение 3'!D15 -> 2602850 | U15: ='Приложение 3'!E15 -> 2548316 | V15: ='Приложение 3'!AF15 -> 0 | W15: ='Приложение 3'!AK15 -> 54534 | Y15: 12.2021
A16: 694 | B16: г. Княгинино, ул. Октябрьская, д. 2 | C16: 1980 | D16: не было | E16: РО | F16: К | G16: 2 | H16: 2 | I16: 931.27 | J16: 809.8 | K16: 809.8 | M16: 766.7 | N16: 41 | O16: 88256 | S16: 88256 | T16: ='Приложение 3'!D16 -> 88256 | U16: ='Приложение 3'!E16 -> 0 | V16: ='Приложение 3'!AF16 -> 88256 | W16: ='Приложение 3'!AK16 -> 0 | Y16: 12.2021
A17: Итого по МО на период 2022 год | I17: =SUM(I18:I26) -> 5198.86 | J17: =SUM(J18:J26) -> 4678 | K17: 4678 | L17: 0 | M17: 4472.9 | N17: 264 | O17: 30853011 | P17: 0 | Q17: 0 | R17: 0 | S17: 30853011 | T17: 30853011 | U17: 29089466 | V17: 1141027 | W17: 622518
A18: 695 | B18: г. Княгинино, ул. Октябрьская, д. 2 | C18: 1980 | D18: не было | E18: РО | F18: К | G18: 2 | H18: 2 | I18: 931.27 | J18: 809.8 | K18: 809.8 | M18: 766.7 | N18: 41 | O18: =S18 -> 6913819 | S18: =T18 -> 6913819 | T18: ='Приложение 3'!D18 -> 6913819 | U18: ='Приложение 3'!E18 -> 6768963 | V18: ='Приложение 3'!AF18 -> 0 | W18: ='Приложение 3'!AK18 -> 144856 | Y18: 12.2022
A19: 696 | B19: г. Княгинино, ул. Октябрьская, д. 31 | C19: 1980 | D19: не было | E19: РО | F19: К | G19: 2 | H19: 1 | I19: 385.7 | J19: 361.2 | K19: 361.2 | M19: 361.2 | N19: 66 | O19: 3585703 | S19: 3585703 | T19: ='Приложение 3'!D19 -> 3585703 | U19: ='Приложение 3'!E19 -> 3300536 | V19: ='Приложение 3'!AF19 -> 214535 | W19: ='Приложение 3'!AK19 -> 70632 | Y19: 12.2022
A20: 697 | B20: г. Княгинино, ул. Октябрьская, д. 10 | C20: 1975 | D20: не было | E20: РО | F20: К | G20: 2 | H20: 2 | I20: 601.1 | J20: 551.3 | K20: 551.3 | M20: 551.3 | N20: 21 | O20: 6697851 | S20: 6697851 | T20: ='Приложение 3'!D20 -> 6697851 | U20: ='Приложение 3'!E20 -> 6165179 | V20: ='Приложение 3'!AF20 -> 400737 | W20: ='Приложение 3'!AK20 -> 131935 | Y20: 12.2022
A21: 698 | B21: г.Княгинино, пер.Советский, д.4 | C21: 1956 | D21: не было | E21: РО | F21: К | G21: 2 | H21: 2 | I21: 421 | J21: 375 | K21: 375 | M21: 375 | N21: 10 | O21: 65346 | S21: 65346 | T21: ='Приложение 3'!D21 -> 65346 | U21: ='Приложение 3'!E21 -> 63976 | V21: ='Приложение 3'!AF21 -> 0 | W21: ='Приложение 3'!AK21 -> 1370 | Y21: 12.2022
A22: 699 | B22: г.Княгинино, ул.Октябрьская, д.7 | C22: 1966 | D22: не было | E22: РО | F22: К | G22: 2 | H22: 2 | I22: 417.4 | J22: 372.2 | K22: 372.2 | M22: 372.2 | N22: 15 | O22: 52857 | S22: 52857 | T22: ='Приложение 3'!D22 -> 52857 | U22: ='Приложение 3'!E22 -> 51749 | V22: ='Приложение 3'!AF22 -> 0 | W22: ='Приложение 3'!AK22 -> 1108 | Y22: 12.2022
A23: 700 | B23: г. Княгинино, пер. Почтовый, д. 4 | C23: 1917 | D23: не было | E23: РО | F23: К | G23: 2 | H23: 1 | I23: 314.6 | J23: 273.7 | K23: 273.7 | M23: 240.1 | N23: 15 | O23: 2463375 | S23: 2463375 | T23: ='Приложение 3'!D23 -> 2463375 | U23: ='Приложение 3'!E23 -> 2267465 | V23: ='Приложение 3'!AF23 -> 147386 | W23: ='Приложение 3'!AK23 -> 48524 | Y23: 12.2022
A24: 701 | B24: г. Княгинино, ул. Урицкого, д. 4 | C24: 1917 | D24: не было | E24: РО | F24: К | G24: 2 | H24: 2 | I24: 573.39 | J24: 498.6 | K24: 498.6 | M24: 370.2 | N24: 31 | O24: 4055335 | S24: 4055335 | T24: ='Приложение 3'!D24 -> 4055335 | U24: ='Приложение 3'!E24 -> 3732818 | V24: ='Приложение 3'!AF24 -> 242634 | W24: ='Приложение 3'!AK24 -> 79883 | Y24: 12.2022
A25: 702 | B25: г Княгинино, ул Октябрьская, д 21 | C25: 1972 | D25: не было | E25: РО | F25: К | G25: 2 | H25: 2 | I25: 790.2 | J25: 729.4 | K25: 729.4 | M25: 729.4 | N25: 29 | O25: 4750078 | S25: 4750078 | T25: ='Приложение 3'!D25 -> 4750078 | U25: ='Приложение 3'!E25 -> 4650556 | V25: ='Приложение 3'!AF25 -> 0 | W25: ='Приложение 3'!AK25 -> 99522 | Y25: 12.2022
A26: 703 | B26: г. Княгинино, ул. Октябрьская, д. 24 | C26: 1974 | D26: не было | E26: РО | F26: К | G26: 2 | H26: 2 | I26: 764.2 | J26: 706.8 | K26: 706.8 | M26: 706.8 | N26: 36 | O26: =S26 -> 2268647 | S26: =T26 -> 2268647 | T26: ='Приложение 3'!D26 -> 2268647 | U26: ='Приложение 3'!E26 -> 2088224 | V26: ='Приложение 3'!AF26 -> 135735 | W26: ='Приложение 3'!AK26 -> 44688 | Y26: 12.2022

Sheet Приложение 3
D2: Перечень видов услуг и (или) работ по капитальному ремонту общего имущества в многоквартирных домах и их стоимости в рамках краткосрочного плана реализации региональной программы капитального ремонта общего имущества в многоквартирных домах, расположенных на территории Нижегородской области, на период 2020-2022 гг.. | AG2: Приложение № 3 к постановлению администрации Княгининского муниципального района от ___________________ № ____
B3: № п/п | C3: Адрес МКД | D3: ВСЕГО стоимость капитального ремонта (столбец 4 +столбец 31+ столбец 36 + столбец 37) | F3: СМР | AF3: ПИР | AK3: Осуществление строительного контроля (технического надзора), авторского надзора применительно к объектам культурного наследия | AL3: Иные виды работ и услуг по капитальному ремонту, предусмотренные ст.20 Закона НО от 28.11.2013 №159-З
E4: Всего стоимость капитального ремонта СМР | F4: в том числе | AF4: Всего ПИР | AG4: в том числе
F5: Всего ремонт внутридомовых инженерных систем | G5: в том числе | S5: Ремонт или замена лифтового оборудования, признанного непригодным для эксплуатации или отработавшего нормативный срок эксплуатации, ремонт лифтовых шахт | U5: Ремонт крыши | W5: Ремонт подвальных помещений, относящихся к общему имуществу в МКД | Y5: Ремонт фасада и (или) осуществляемое в соответствии с ч.3 ст.20 Закона НО от 28.11.2013 №159-З утепление фасада | AA5: Замена признанных непригодными к применению коллективных (общедомовых) приборов учёта потребления ресурсов, необходимых для предоставления коммунальных услуг (тепловой энергии, гороячей и холодной воды, электрической энергии, газ) (ПУ) | AB5: Ремонт фундамента МКД | AD5: Установка или замена признанных непригодными к применению узлов управления и регулирования потребления ресурсов, необходимых для предоставлениякоммунальных услуг (тепловой энергии, гороячей и холодной воды, электрической энергии, газ) (УУ, УР) | AE5: Ремонт системы дымоудаления | AG5: Разработка проектной, научено-проектной (применительно к объектам культурного наследия (памятникам истории и культуры) народов РФ) документации для капитального ремонта, сметной документации на выполнение работ и (или) услуг по капитальному ремонту | AH5: Проведение экспертизы проектной и (или) сметной документации в соответствии с законодательством РФ | AI5: Обследование технического состояния МКДи (или) элементов МКД и (или) инженерных систем МКД | AJ5: Инженерные изыскания, проводимые специализированной организацией
G6: электроснабжение | I6: теплоснабжение | K6: газоснабжение | M6: холодное водоснабжение | O6: горячее водоснабжение | Q6: водоотведение
D7: руб. | E7: руб. | F7: руб. | G7: м | H7: руб. | I7: м | J7: руб. | K7: м | L7: руб. | M7: м | N7: руб. | O7: м | P7: руб. | Q7: м | R7: руб. | S7: ед. | T7: руб. | U7: кв.м. | V7: руб. | W7: кв.м. | X7: руб. | Y7: кв.м. | Z7: руб. | AA7: руб. | AB7: куб.м. | AC7: руб. | AD7: руб. | AE7: руб | AF7: руб. | AG7: руб. | AH7: руб | AI7: руб. | AJ7: руб. | AK7: руб. | AL7: руб
A8: Год | B8: 1 | C8: 2 | D8: 3 | E8: 4 | F8: 5 | G8: 6 | H8: 7 | I8: 8 | J8: 9 | K8: 10 | L8: 11 | M8: 12 | N8: 13 | O8: 14 | P8: 15 | Q8: 16 | R8: 17 | S8: 18 | T8: 19 | U8: 20 | V8: 21 | W8: 22 | X8: 23 | Y8: 24 | Z8: 25 | AA8: 26 | AB8: 27 | AC8: 28 | AD8: 29 | AE8: 30 | AF8: 31 | AG8: 32 | AH8: 33 | AI8: 34 | AJ8: 35 | AK8: 36 | AL8: 37
B9: 20 | C9: Княгининский муниципальный район
B10: Всего по Княгининскому муниципальному району на 2020-2022 годы | D10: =D11+D14+D17 -> 33923161 | E10: =E11+E14+E17 -> 31637782 | F10: 8557628 | G10: 811 | H10: 1285383 | I10: 3366.8 | J10: 4874968 | K10: 135 | L10: 1074202 | M10: 242.15 | N10: 687116 | O10: 0 | P10: 0 | Q10: 329.8 | R10: 635959 | S10: 0 | T10: 0 | U10: 5020 | V10: 11206830 | W10: 385 | X10: 160436 | Y10: 3651 | Z10: 8720302 | AA10: 0 | AB10: 141.3 | AC10: 2992586 | AD10: 0 | AE10: 0 | AF10: 1608327 | AG10: 1608327 | AH10: 0 | AI10: 0 | AJ10: 0 | AK10: 677052
B11: Итого по МО на период 2020 год | D11: =D12+D13 -> 379044 | E11: =E12+E13 -> 0 | F11: 0 | G11: 0 | H11: 0 | I11: 0 | J11: 0 | K11: 0 | L11: 0 | M11: 0 | N11: 0 | O11: 0 | P11: 0 | Q11: 0 | R11: 0 | S11: 0 | T11: 0 | U11: 0 | V11: 0 | W11: 0 | X11: 0 | Y11: 0 | Z11: 0 | AA11: 0 | AB11: 0 | AC11: 0 | AD11: 0 | AE11: 0 | AF11: 379044 | AG11: 379044 | AH11: 0 | AI11: 0 | AJ11: 0 | AK11: 0
A12: 2020 | B12: 691 | C12: г Княгинино, ул Октябрьская, д 21 | D12: =E12+AF12+AK12 -> 250949 | E12: =F12+T12+V12+X12+Z12+AA12+AC12+AD12+AE12 -> 0 | F12: =H12+J12+L12+N12+P12+R12 -> 0 | AF12: =AG12+AH12+AI12+AJ12 -> 250949 | AG12: 250949
A13: 2020 | B13: 692 | C13: г. Княгинино, ул. Октябрьская, д. 2 | D13: 128095 | E13: 0 | F13: 0 | AF13: 128095 | AG13: 128095
B14: Итого по МО на период 2021 год | D14: =D15+D16 -> 2691106 | E14: =E15+E16 -> 2548316 | F14: 904356 | G14: 0 | H14: 0 | I14: 2000.8 | J14: 619460 | K14: 0 | L14: 0 | M14: 49.15 | N14: 121761 | O14: 0 | P14: 0 | Q14: 54.8 | R14: 163135 | S14: 0 | T14: 0 | U14: 0 | V14: 0 | W14: 0 | X14: 0 | Y14: 852 | Z14: 1643960 | AA14: 0 | AB14: 0 | AC14: 0 | AD14: 0 | AE14: 0 | AF14: 88256 | AG14: 88256 | AH14: 0 | AI14: 0 | AJ14: 0 | AK14: 54534
A15: 2021 | B15: 693 | C15: г Княгинино, ул Октябрьская, д 21 | D15: =E15+AF15+AK15 -> 2602850 | E15: =F15+T15+V15+X15+Z15+AA15+AC15+AD15+AE15 -> 2548316 | F15: =H15+J15+L15+N15+P15+R15 -> 904356 | I15: 2000,80 | J15: 619460 | M15: 49,15 | N15: 121761 | Q15: 54,80 | R15: 163135 | Y15: 852,00 | Z15: 1643960 | AF15: =AG15+AH15+AI15+AJ15 -> 0 | AK15: 54534
A16: 2021 | B16: 694 | C16: г. Княгинино, ул. Октябрьская, д. 2 | D16: 88256 | E16: 0 | F16: 0 | AF16: 88256 | AG16: 88256
B17: Итого по МО на период 2022 год | D17: =SUM(D18:D26) -> 30853011 | E17: =SUM(E18:E26) -> 29089466 | F17: 7653272 | G17: 811 | H17: 1285383 | I17: 1366 | J17: 4255508 | K17: 135 | L17: 1074202 | M17: 193 | N17: 565355 | O17: 0 | P17: 0 | Q17: 275 | R17: 472824 | S17: 0 | T17: 0 | U17: 5020 | V17: 11206830 | W17: 385 | X17: 160436 | Y17: 2799 | Z17: 7076342 | AA17: 0 | AB17: 141.3 | AC17: 2992586 | AD17: 0 | AE17: 0 | AF17: 1141027 | AG17: 1141027 | AH17: 0 | AI17: 0 | AJ17: 0 | AK17: 622518
A18: 2022 | B18: 695 | C18: г. Княгинино, ул. Октябрьская, д. 2 | D18: =E18+AF18+AK18 -> 6913819 | E18: =F18+T18+V18+X18+Z18+AA18+AC18+AD18+AE18 -> 6768963 | F18: =H18+J18+L18+N18+P18+R18 -> 2543862 | G18: 268 | H18: 345211 | I18: 494 | J18: 1358481 | K18: 44 | L18: 420208 | M18: 58 | N18: 210872 | Q18: 129 | R18: 209090 | U18: 1190 | V18: 1668076 | Y18: 910 | Z18: 2018023 | AB18: 35 | AC18: 539002 | AF18: =AG18+AH18+AI18+AJ18 -> 0 | AK18: 144856
A19: 2022 | B19: 696 | C19: г. Княгинино, ул. Октябрьская, д. 31 | D19: 3585703 | E19: 3300536 | F19: 1095447 | G19: 119 | H19: 153871 | I19: 220 | J19: 610392 | K19: 20 | L19: 143866 | M19: 26 | N19: 94056 | Q19: 58 | R19: 93262 | U19: 530 | V19: 871250 | Y19: 405 | Z19: 1093424 | AB19: 16 | AC19: 240415 | AF19: 214535 | AG19: 214535 | AK19: 70632
A20: 2022 | B20: 697 | C20: г. Княгинино, ул. Октябрьская, д. 10 | D20: 6697851 | E20: 6165179 | F20: 1755300 | G20: 182 | H20: 234485 | I20: 335 | J20: 986058 | K20: 31 | L20: 219583 | M20: 40 | N20: 144702 | Q20: 88 | R20: 170472 | U20: 807 | V20: 1609891 | Y20: 617 | Z20: 1665784 | AB20: 24 | AC20: 1134204 | AF20: 400737 | AG20: 400737 | AK20: 131935
A21: 2022 | B21: 698 | C21: г.Княгинино, пер.Советский, д.4 | D21: 65346 | E21: 63976 | F21: 63976 | M21: 37 | N21: 63976 | AF21: 0 | AK21: 1370
A22: 2022 | B22: 699 | C22: г.Княгинино, ул.Октябрьская, д.7 | D22: 52857 | E22: 51749 | F22: 51749 | M22: 32 | N22: 51749 | AF22: 0 | AK22: 1108
A23: 2022 | B23: 700 | C23: г. Княгинино, пер. Почтовый, д. 4 | D23: 2463375 | E23: 2267465 | F23: 462525 | I23: 167 | J23: 462525 | U23: 402 | V23: 737340 | W23: 136 | X23: 56858 | Y23: 307 | Z23: 828568 | AB23: 12 | AC23: 182174 | AF23: 147386 | AG23: 147386 | AK23: 48524
A24: 2022 | B24: 701 | C24: г. Княгинино, ул. Урицкого, д. 4 | D24: 4055335 | E24: 3732818 | F24: 838052 | I24: 150 | J24: 838052 | U24: 366 | V24: 909401 | W24: 249 | X24: 103578 | Y24: 560 | Z24: 1470543 | AB24: 22 | AC24: 411244 | AF24: 242634 | AG24: 242634 | AK24: 79883
A25: 2022 | B25: 702 | C25: г Княгинино, ул Октябрьская, д 21 | D25: 4750078 | E25: 4650556 | F25: 842361 | G25: 242 | H25: 551816 | K25: 40 | L25: 290545 | U25: 733 | V25: 3322648 | AB25: 32.3 | AC25: 485547 | AF25: 0 | AK25: 99522
A26: 2022 | B26: 703 | C26: г. Княгинино, ул. Октябрьская, д. 24 | D26: =E26+AF26+AK26 -> 2268647 | E26: =F26+T26+V26+X26+Z26+AA26+AC26+AD26+AE26 -> 2088224 | F26: =H26+J26+L26+N26+P26+R26 -> 0 | U26: 992 | V26: 2088224 | AF26: =AG26+AH26+AI26+AJ26 -> 135735 | AG26: 135735 | AK26: 44688
